bitfinex/quotes_SOLUSD_20260306
["timestamp","ask_amount","ask_price","bid_price","bid_amount"]
[1772807065128,0.5198169,85.285,85.247,0.51913726]
[1772807065425,0.5198169,85.285,85.243,2.51037481]
[1772807065426,0.5198169,85.283,85.243,2.51037481]
[1772807065624,0.5198169,85.283,85.244,11.73103092]
[1772807066334,30.0,85.267,85.244,11.73103092]
[1772807067633,0.5198169,85.266,85.244,11.73103092]
[1772807067832,30.0,85.265,85.244,11.73103092]
[1772807070920,30.0,85.265,85.245,0.51913726]
[1772807071516,0.5198169,85.285,85.245,0.51913726]
[1772807071830,0.50663766,85.282,85.244,11.73103092]
[1772807073322,0.50663766,85.279,85.243,2.51037481]
[1772807073527,0.50663766,85.279,85.244,11.73103092]
[1772807074624,0.50663766,85.279,85.267,8.1e-07]
[1772807075318,11.72594129,85.281,85.267,8.1e-07]
[1772807075319,0.50663766,85.277,85.267,8.1e-07]
[1772807077127,0.50663766,85.276,85.243,1e-08]
[1772807077332,70.35812283,85.278,85.243,1e-08]
[1772807077333,11.73034287,85.249,85.243,1e-08]
[1772807077527,0.28432314,85.248,85.243,1e-08]
[1772807078647,0.28432314,85.239,85.203,12.28670509]
[1772807078849,0.28432314,85.239,85.204,0.55002916]
[1772807079624,11.73185668,85.238,85.206,0.55002916]
[1772807079825,0.28432314,85.239,85.206,0.55002916]
[1772807080021,0.28432314,85.229,85.197,11.73742623]
[1772807080540,0.28432314,85.229,85.158,0.14216157]
[1772807080541,0.28432314,85.209,85.164,11.74205063]
[1772807080844,0.28432314,85.199,85.165,0.55002916]
[1772807081652,11.73736472,85.198,85.167,0.55002916]
[1772807083155,11.73660373,85.204,85.167,0.55002916]
[1772807083859,12.02017263,85.209,85.169,0.55002916]
[1772807084063,0.28432314,85.208,85.169,0.55002916]
[1772807085163,0.28432314,85.219,85.169,0.55002916]
[1772807087653,0.28432314,85.209,85.171,0.55002916]
[1772807088942,11.73461005,85.218,85.171,0.55002916]
[1772807090346,0.28432314,85.219,85.173,0.55002916]
[1772807091648,11.73350855,85.226,85.173,0.55002916]
[1772807091860,0.28432314,85.225,85.173,0.55002916]
[1772807092059,11.4788117,85.233,85.176,0.55002916]
[1772807092247,11.73268256,85.232,85.177,0.55002916]
[1772807092564,11.4788117,85.233,85.176,0.28432314]
[1772807092565,11.4788117,85.233,85.182,0.55002916]
[1772807092863,41.05427373,85.253,85.182,0.55002916]
[1772807093052,0.28432314,85.249,85.182,0.55002916]
[1772807093956,9.18304936,85.258,85.183,0.55002916]
[1772807094158,11.00056032,85.3,85.193,4.24386318]
[1772807094359,10.80056032,85.29,85.205,0.55002916]
[1772807094668,0.28432314,85.289,85.206,0.55002916]
[1772807094866,10.80056032,85.29,85.206,0.55002916]
[1772807095067,0.28432314,85.289,85.206,0.55002916]
[1772807095366,0.28432314,85.279,85.206,0.55002916]
[1772807096143,10.80056032,85.29,85.206,0.55002916]
[1772807096658,0.28432314,85.288,85.212,0.55002916]
[1772807097172,0.28432314,85.279,85.212,0.55002916]
[1772807097462,0.28432314,85.269,85.212,0.55002916]
[1772807100066,11.72497889,85.288,85.218,0.55002916]
[1772807100250,41.03742612,85.288,85.218,0.55002916]
[1772807100458,0.14216157,85.287,85.218,0.55002916]
[1772807100655,56.79377327,85.287,85.218,0.55002916]
[1772807100965,0.2,85.3,85.218,0.55002916]
[1772807101165,0.2,85.3,85.217,0.28432314]
[1772807101166,11.72346686,85.299,85.221,0.55002916]
[1772807101568,0.28432314,85.298,85.221,0.55002916]
[1772807101775,0.28432314,85.279,85.221,0.55002916]
[1772807102071,41.04705164,85.268,85.223,0.55002916]
[1772807103069,11.72772904,85.268,85.223,0.55002916]
[1772807104068,29.60065911,85.277,85.223,0.55002916]
[1772807104266,0.28432314,85.275,85.225,0.55002916]
[1772807105549,0.28432314,85.269,85.225,0.55002916]
[1772807106151,41.04705164,85.268,85.226,11.73350855]
[1772807106547,10.80056032,85.26,85.226,11.73350855]
[1772807106867,0.28432314,85.259,85.226,11.73350855]
[1772807107172,0.28432314,85.259,85.227,0.55002916]
[1772807108165,41.0518661,85.258,85.219,0.55002916]
[1772807110269,11.7291046,85.258,85.221,0.55002916]
[1772807110860,41.0518661,85.258,85.221,0.55002916]
[1772807111274,10.80056032,85.24,85.205,0.55002916]
[1772807111472,0.28432314,85.239,85.205,0.55002916]
[1772807111785,0.28432314,85.239,85.193,0.55002916]
[1772807111963,0.28432314,85.229,85.193,0.55002916]
[1772807112274,11.7332332,85.228,85.194,11.73791581]
[1772807112672,11.7332332,85.228,85.194,12.28794497]
[1772807113075,41.06631622,85.228,85.186,0.55002916]
[1772807113389,0.28432314,85.225,85.19,11.73838174]
[1772807113760,0.28432314,85.225,85.186,0.55002916]
[1772807113960,0.28432314,85.225,85.191,23.1033066]
[1772807114195,12.01838242,85.222,85.193,11.73805359]
[1772807114574,12.01838242,85.222,85.194,0.55002916]
[1772807115270,30.0,85.22,85.194,0.55002916]
[1772807116380,10.80056032,85.26,85.196,0.55002916]
[1772807116577,0.28432314,85.259,85.196,0.55002916]
[1772807116960,10.80056032,85.26,85.196,0.55002916]
[1772807117378,41.05138459,85.259,85.198,0.55002916]
[1772807117580,0.28432314,85.229,85.192,0.55002916]
[1772807119666,11.7332332,85.228,85.164,3.69383402]
[1772807119868,0.5179728,85.226,85.164,3.69383402]
[1772807120685,30.0,85.218,85.164,3.69383402]
[1772807121064,0.5179728,85.217,85.164,3.69383402]
[1772807121691,0.5179728,85.215,85.167,0.52821392]
[1772807124084,11.73516088,85.214,85.169,0.52821392]
[1772807124383,0.5179728,85.213,85.169,0.52821392]
[1772807125184,0.51751078,85.212,85.169,0.52821392]
[1772807125387,0.51751078,85.208,85.169,0.52821392]
[1772807125593,0.51751078,85.208,85.168,11.74149915]
[1772807126098,0.51751078,85.208,85.161,0.52821392]
[1772807126398,0.51575074,85.205,85.163,0.52821392]
[1772807126571,0.51575074,85.198,85.163,0.52821392]
[1772807128284,11.73750249,85.197,85.165,0.52821392]
[1772807128788,0.51049688,85.196,85.165,0.52821392]
[1772807129174,0.51049688,85.195,85.158,0.52821392]
[1772807131189,0.50701604,85.193,85.158,0.52821392]
[1772807131491,0.50701604,85.188,85.147,0.52821392]
[1772807131684,41.08270534,85.194,85.139,0.50912137]
[1772807131685,0.40528219,85.178,85.139,0.50912137]
[1772807132070,4.82477569,85.198,85.138,11.74563649]
[1772807132071,0.28432314,85.203,85.142,0.50912137]
[1772807132290,0.40528219,85.202,85.142,0.50912137]
[1772807133372,0.28432314,85.2,85.144,0.50912137]
[1772807133567,11.73638364,85.206,85.146,3.69383402]
[1772807133789,0.40195023,85.205,85.147,0.50912137]
[1772807134486,0.40195023,85.198,85.147,0.50912137]
[1772807135073,0.68455199,85.179,85.147,0.50912137]
[1772807135268,0.40022885,85.166,85.131,0.50912137]
[1772807135671,0.28432314,85.159,85.12,0.50912137]
[1772807135870,0.39851175,85.158,85.127,0.50912137]
[1772807136988,0.39851175,85.158,85.092,58.75937368]
[1772807136989,0.3967989,85.148,85.111,12.25841771]
[1772807137190,0.2967989,85.138,85.094,0.50912137]
[1772807137374,3.69383402,85.164,85.073,58.77273544]
[1772807137375,0.2967989,85.136,85.096,0.50912137]
[1772807138394,11.74605039,85.135,85.098,0.50912137]
[1772807138887,0.2935089,85.134,85.098,0.50912137]
[1772807139091,0.57783204,85.129,85.098,0.50912137]
[1772807139289,10.81844313,85.13,85.098,0.50912137]
[1772807139889,10.81844313,85.13,85.089,0.52176903]
[1772807140087,10.81844313,85.12,85.089,0.52176903]
[1772807140390,11.74687826,85.129,85.091,0.52176903]
[1772807140597,41.11407392,85.129,85.093,0.52176903]
[1772807141184,0.28432314,85.128,85.093,0.52176903]
[1772807142087,0.28432314,85.128,85.063,29.38990494]
[1772807142277,0.28432314,85.119,85.081,0.52176903]
[1772807142596,0.28432314,85.117,85.082,0.52176903]
[1772807142796,11.74839634,85.118,85.082,0.52176903]
[1772807143170,12.03133939,85.128,85.082,0.52176903]
[1772807143391,11.74701625,85.128,85.082,0.52176903]
[1772807144794,11.74701625,85.128,85.054,58.78576422]
[1772807144795,12.02913193,85.144,85.084,0.52176903]
[1772807144979,11.74480879,85.144,85.084,0.52176903]
[1772807145588,0.28432314,85.143,85.084,0.52176903]
[1772807146590,11.74480879,85.144,85.088,99.89657765]
[1772807146784,7.28339079,85.145,85.092,0.52176903]
[1772807147094,11.74480879,85.144,85.092,0.52176903]
[1772807147501,7.28339079,85.145,85.092,0.52176903]
[1772807147878,7.28339079,85.145,85.093,0.52176903]
[1772807148698,7.28339079,85.145,85.098,0.52176903]
[1772807148895,7.28339079,85.145,85.099,0.52176903]
[1772807149694,11.73998285,85.179,85.1,0.52176903]
[1772807149994,0.28432314,85.178,85.1,0.52176903]
[1772807150398,18.07626059,85.19,85.098,0.28432314]
[1772807150399,7.25781746,85.19,85.102,0.52176903]
[1772807150598,7.25781746,85.19,85.109,0.52176903]
[1772807150898,10.81844313,85.22,85.115,0.52176903]
[1772807151200,22.31181172,85.22,85.115,0.52176903]
[1772807151582,0.28432314,85.219,85.115,0.52176903]
[1772807151804,22.31181172,85.22,85.118,0.52176903]
[1772807152402,0.28432314,85.219,85.118,0.52176903]
[1772807152897,41.21281481,85.219,85.119,99.86019572]
[1772807153106,41.21281481,85.219,85.124,0.52176903]
[1772807153399,0.14216157,85.218,85.124,0.52176903]
[1772807154186,0.14216157,85.218,85.129,0.52176903]
[1772807154386,0.14216157,85.218,85.13,0.52176903]
[1772807154788,11.7332332,85.228,85.129,0.28432314]
[1772807154789,11.7332332,85.228,85.135,0.52176903]
[1772807154995,41.06631622,85.228,85.136,0.52176903]
[1772807155305,0.14216157,85.219,85.136,0.52176903]
[1772807155502,0.14216157,85.209,85.136,0.52176903]
[1772807156308,0.14216157,85.227,85.141,0.52176903]
[1772807156802,0.28432314,85.219,85.142,0.52176903]
[1772807157908,0.28432314,85.217,85.147,0.80609217]
[1772807158093,0.28432314,85.217,85.148,0.52176903]
[1772807158291,11.73461005,85.218,85.148,0.52176903]
[1772807159223,0.28432314,85.217,85.148,0.52176903]
[1772807159394,10.81844313,85.21,85.148,0.52176903]
[1772807160311,0.28432314,85.215,85.153,0.52176903]
[1772807161099,0.28432314,85.209,85.153,0.52176903]
[1772807161814,0.28432314,85.199,85.153,0.52176903]
[1772807162311,0.28432314,85.197,85.155,0.52176903]
[1772807163019,0.28432314,85.207,85.155,0.52176903]
[1772807163198,11.73516088,85.214,85.155,0.52176903]
[1772807163515,56.79377327,85.25,85.159,0.52176903]
[1772807163698,18.98816144,85.234,85.159,0.52176903]
[1772807163894,10.81844313,85.23,85.159,0.52176903]
[1772807164099,0.28432314,85.229,85.159,0.52176903]
[1772807164295,0.28432314,85.227,85.161,0.52176903]
[1772807165013,41.06631622,85.228,85.161,0.52176903]
[1772807165014,0.28432314,85.219,85.161,0.52176903]
[1772807165334,0.28432314,85.209,85.161,0.52176903]
[1772807166433,0.28432314,85.207,85.163,0.52176903]
[1772807167415,11.7352735,85.214,85.163,0.52176903]
[1772807167722,0.28432314,85.213,85.163,0.52176903]
[1772807168824,11.73543632,85.212,85.165,0.52176903]
[1772807169322,41.07402712,85.212,85.165,0.52176903]
[1772807169830,11.73543632,85.212,85.165,0.52176903]
[1772807170929,11.73543632,85.212,85.141,0.28432314]
[1772807170930,11.7325449,85.233,85.171,0.52176903]
[1772807171617,0.28432314,85.232,85.171,0.52176903]
[1772807171819,11.7325449,85.233,85.171,0.52176903]
[1772807172023,0.28432314,85.232,85.171,0.52176903]
[1772807172204,0.28432314,85.219,85.171,0.52176903]
[1772807172904,0.28432314,85.217,85.173,0.52176903]
[1772807174421,11.7332332,85.228,85.173,0.52176903]
[1772807174925,12.01686804,85.233,85.175,0.52176903]
[1772807175928,9.44227557,85.319,85.179,0.52176903]
[1772807176116,1e-08,85.33,85.177,3.69383402]
[1772807176117,29.31330198,85.286,85.182,0.52176903]
[1772807176317,10.81844313,85.27,85.182,0.52176903]
[1772807176510,10.81844313,85.27,85.184,0.52176903]
[1772807176715,0.28432314,85.269,85.184,0.52176903]
[1772807176919,11.72896702,85.259,85.191,0.52176903]
[1772807177105,41.05138459,85.259,85.191,0.52176903]
[1772807177310,0.14216157,85.258,85.191,0.52176903]
[1772807177725,0.28432314,85.258,85.191,0.52176903]
[1772807179201,0.28432314,85.256,85.196,0.52176903]
[1772807181131,62.48432314,85.256,85.196,0.52176903]
[1772807182030,0.28432314,85.254,85.201,0.52176903]
[1772807184119,0.28432314,85.252,85.203,0.52176903]
[1772807185940,58.62391126,85.29,85.206,0.52176903]
[1772807186113,58.62391126,85.29,85.202,99.76291634]
[1772807186114,29.31210355,85.289,85.211,0.52176903]
[1772807186314,4.82477569,85.293,85.211,0.52176903]
[1772807186315,0.2,85.3,85.212,0.52176903]
[1772807186635,0.2,85.3,85.217,0.52176903]
[1772807186820,11.72346686,85.299,85.219,0.52176903]
[1772807187320,11.72346686,85.299,85.221,0.52176903]
[1772807187733,11.72346686,85.299,85.223,0.52176903]
[1772807188125,11.72346686,85.299,85.228,0.52176903]
[1772807188327,11.72346686,85.299,85.231,0.52176903]
[1772807188525,0.2,85.3,85.231,0.52176903]
[1772807188723,11.72346686,85.299,85.233,0.52176903]
[1772807189131,11.72346686,85.299,85.235,0.52176903]
[1772807189738,11.72346686,85.299,85.238,0.52176903]
[1772807190116,11.72346686,85.299,85.243,0.52176903]
[1772807191747,0.28432314,85.298,85.243,0.52176903]
[1772807191938,0.28432314,85.289,85.243,0.52176903]
[1772807192139,0.28432314,85.287,85.244,11.73103092]
[1772807192333,0.28432314,85.279,85.24,15.78160836]
[1772807192644,10.7928112,85.28,85.24,15.78160836]
[1772807192645,41.03742612,85.288,85.241,0.52176903]
[1772807192820,0.28432314,85.287,85.241,0.52176903]
[1772807194139,0.28432314,85.287,85.243,0.52176903]
[1772807194140,0.28432314,85.285,85.243,0.52176903]
[1772807195245,0.28432314,85.283,85.245,0.52176903]
[1772807196142,11.72552882,85.284,85.245,0.52176903]
[1772807196528,0.28432314,85.298,85.245,0.52176903]
[1772807197430,0.28432314,85.296,85.247,0.52176903]
[1772807199239,11.72401664,85.295,85.248,41.05668168]
[1772807199549,0.28432314,85.294,85.249,0.52176903]
[1772807200742,0.2,85.3,85.252,0.52176903]
[1772807200947,41.03213401,85.299,85.252,0.52176903]
[1772807201133,0.28432314,85.298,85.252,0.52176903]
[1772807201328,0.14216157,85.296,85.254,0.52176903]
[1772807201559,11.72374174,85.297,85.254,0.52176903]
[1772807201847,11.92341011,85.3,85.254,0.52176903]
[1772807202428,0.28432314,85.299,85.254,0.52176903]
[1772807202841,41.23173367,85.3,85.254,0.52176903]
[1772807202842,11.92341011,85.3,85.254,0.52176903]
[1772807203427,0.28432314,85.299,85.256,0.52176903]
[1772807203856,0.28432314,85.299,85.25,11.7301252]
[1772807203857,10.7928112,85.29,85.25,11.7301252]
[1772807204161,0.28432314,85.289,85.25,11.7301252]
[1772807204334,0.28432314,85.289,85.251,0.52176903]
[1772807204732,52.02454487,85.3,85.251,0.52176903]
[1772807204933,0.28432314,85.299,85.251,0.52176903]
[1772807205130,0.28432314,85.299,85.253,0.52176903]
[1772807205549,0.28432314,85.297,85.255,0.52176903]
[1772807206261,0.28432314,85.297,85.254,41.05379219]
[1772807206262,0.2,85.32,85.256,0.52176903]
[1772807206437,0.2,85.32,85.259,0.52176903]
[1772807206849,0.2,85.32,85.258,0.28432314]
[1772807206850,0.1,85.34,85.262,0.52176903]
[1772807207060,11.81787877,85.34,85.265,0.52176903]
[1772807207349,11.71840794,85.336,85.267,0.52176903]
[1772807207658,0.1,85.34,85.274,0.52176903]
[1772807208233,10.8928112,85.34,85.274,0.52176903]
[1772807208663,0.28432314,85.339,85.274,0.52176903]
[1772807209949,0.28432314,85.337,85.279,0.52176903]
[1772807210143,10.79281121,85.33,85.279,0.52176903]
[1772807210837,0.28432314,85.329,85.279,0.52176903]
[1772807211040,10.7928112,85.32,85.279,0.52176903]
[1772807211852,0.28432314,85.329,85.279,0.52176903]
[1772807212058,0.28432314,85.327,85.281,0.52176903]
[1772807212552,10.7928112,85.32,85.281,0.52176903]
[1772807212754,0.28432314,85.319,85.281,0.52176903]
[1772807212945,0.28432314,85.319,85.274,11.72681485]
[1772807213149,0.28432314,85.299,85.265,0.52176903]
[1772807213453,10.7928112,85.29,85.213,0.52176903]
[1772807213645,4.82477569,85.319,85.212,41.60235245]
[1772807213646,0.28432314,85.289,85.215,0.52176903]
[1772807213955,0.28432314,85.287,85.222,0.52176903]
[1772807214350,10.7928112,85.28,85.222,0.52176903]
[1772807214545,0.28432314,85.287,85.222,0.52176903]
[1772807216350,0.28432314,85.285,85.224,0.52176903]
[1772807216641,11.72525385,85.286,85.225,0.52176903]
[1772807216831,11.72525385,85.286,85.228,0.52176903]
[1772807217443,29.30619648,85.307,85.228,0.52176903]
[1772807217644,11.72250486,85.306,85.229,0.52176903]
[1772807217845,10.7928112,85.3,85.229,0.52176903]
[1772807218158,41.02876702,85.306,85.229,0.52176903]
[1772807218454,41.02876702,85.306,85.228,0.35688331]
[1772807218455,41.02876702,85.306,85.235,0.52176903]
[1772807218653,10.7928112,85.27,85.235,0.52176903]
[1772807218856,11.07713434,85.28,85.235,0.52176903]
[1772807219362,10.7928112,85.27,85.235,0.52176903]
[1772807219743,0.28432314,85.28,85.235,0.52176903]
[1772807219949,10.7928112,85.27,85.228,0.35688331]
[1772807220149,10.7928112,85.27,85.228,0.87865234]
[1772807220454,11.7275915,85.269,85.23,12.2547269]
[1772807220639,0.28432314,85.268,85.23,0.52176903]
[1772807220835,10.7928112,85.26,85.229,11.73309554]
[1772807221460,0.28432314,85.268,85.229,11.73309554]
[1772807221840,11.7275915,85.269,85.23,0.52176903]
[1772807222042,10.7928112,85.26,85.23,0.52176903]
[1772807222237,10.7928112,85.26,85.228,0.35688331]
[1772807222438,10.7928112,85.25,85.205,0.52176903]
[1772807222641,0.28432314,85.239,85.179,0.52176903]
[1772807222860,10.7928112,85.23,85.182,0.52176903]
[1772807224472,11.73309554,85.229,85.184,0.52176903]
[1772807225463,41.06583439,85.229,85.184,0.52176903]
[1772807226264,0.28432314,85.249,85.184,0.52176903]
[1772807226465,0.28432314,85.247,85.186,0.52176903]
[1772807226663,0.28432314,85.247,85.185,41.08704583]
[1772807226664,0.28432314,85.247,85.191,0.52176903]
[1772807227575,41.05668168,85.248,85.191,0.52176903]
[1772807227576,10.7928112,85.23,85.191,0.52176903]
[1772807228255,10.7928112,85.23,85.185,41.08704583]
[1772807228570,11.73447235,85.219,85.185,0.52176903]
[1772807228770,11.07713434,85.23,85.185,0.52176903]
[1772807229075,0.28432314,85.228,85.185,0.52176903]
[1772807230086,103.26583439,85.229,85.185,0.52176903]
[1772807230087,62.2,85.229,85.185,0.52176903]
[1772807230378,10.7928112,85.25,85.186,0.52176903]
[1772807230554,41.3405232,85.249,85.188,0.52176903]
[1772807230761,10.7928112,85.24,85.188,0.52176903]
[1772807231258,10.7928112,85.24,85.19,0.5]
[1772807231574,41.3405232,85.249,85.191,0.52176903]
[1772807232278,11.73034287,85.249,85.191,0.52176903]
[1772807232579,41.05620006,85.249,85.193,0.52176903]
[1772807233164,0.28432314,85.248,85.193,0.52176903]
[1772807233363,10.7928112,85.24,85.193,0.52176903]
[1772807234682,10.7928112,85.24,85.195,0.52176903]
[1772807234683,41.06101666,85.239,85.195,0.52176903]
[1772807236962,41.06101666,85.239,85.116,46.99426216]
[1772807236963,10.7928112,85.21,85.184,0.52176903]
[1772807237162,10.7928112,85.21,85.185,0.52176903]
[1772807237562,10.7928112,85.21,85.179,11.73995495]
[1772807237563,11.07713434,85.22,85.179,11.73995495]
[1772807237769,11.07713434,85.22,85.18,0.52176903]
[1772807237964,10.7928112,85.21,85.18,0.52176903]
[1772807238183,10.7928112,85.21,85.153,3.69383402]
[1772807238184,10.7928112,85.21,85.173,11.74077435]
[1772807238369,10.7928112,85.2,85.162,0.52176903]
[1772807238569,0.28432314,85.21,85.162,0.52176903]
[1772807238882,10.7928112,85.2,85.162,0.52176903]
[1772807239085,41.08029436,85.199,85.163,11.7421885]
[1772807239385,41.08029436,85.199,85.164,0.52176903]
[1772807240679,41.08029436,85.199,85.152,29.35926343]
[1772807240680,10.7928112,85.19,85.154,0.52176903]
[1772807240883,0.28432314,85.198,85.154,0.52176903]
[1772807241067,0.28432314,85.196,85.155,11.74329164]
[1772807241264,0.28432314,85.196,85.15,0.52176903]
[1772807241265,10.7928112,85.18,85.15,0.52176903]
[1772807241481,10.7928112,85.18,85.14,0.1]
[1772807241482,10.7928112,85.17,85.14,0.62176903]
[1772807241678,10.7928112,85.17,85.14,12.3671112]
[1772807241877,10.7928112,85.18,85.14,12.3671112]
[1772807242085,11.07713434,85.18,85.14,0.62176903]
[1772807242286,11.07713434,85.18,85.152,0.52176903]
[1772807242287,10.7928112,85.18,85.152,0.52176903]
[1772807242483,0.28432314,85.179,85.141,0.52176903]
[1772807243084,0.28432314,85.177,85.141,0.52176903]
[1772807243281,0.28432314,85.177,85.143,0.52176903]
[1772807244386,0.28432314,85.177,85.14,0.1]
[1772807244387,0.28432314,85.159,85.14,0.1]
[1772807244971,10.7928112,85.15,85.14,0.1]
[1772807245179,11.74411913,85.149,85.14,0.1]
[1772807245387,30.0,85.144,85.14,0.1]
[1772807246487,0.28432314,85.174,85.14,0.62176903]
[1772807247086,0.16516954,85.196,85.14,0.62176903]
[1772807247279,11.93571619,85.27,85.14,0.62176903]
[1772807247280,11.7362627,85.206,85.142,0.4740189]
[1772807247466,11.73474776,85.217,85.145,0.4740189]
[1772807247989,11.73474776,85.217,85.146,0.4740189]
[1772807248690,0.28432314,85.216,85.146,0.4740189]
[1772807248903,29.33549242,85.221,85.151,0.4740189]
[1772807249085,0.28432314,85.22,85.151,0.4740189]
[1772807249473,11.11498364,85.22,85.151,0.4740189]
[1772807249679,0.16516954,85.219,85.151,0.4740189]
[1772807250702,0.16516954,85.209,85.151,0.4740189]
[1772807250990,0.16516954,85.207,85.153,0.4740189]
[1772807251188,0.44949268,85.207,85.153,0.4740189]
[1772807251779,0.16516954,85.189,85.153,0.4740189]
[1772807252791,0.28432314,85.195,85.154,11.74342955]
[1772807252997,0.44949268,85.195,85.155,0.48060967]
[1772807254286,0.28432314,85.195,85.155,0.48060967]
[1772807254684,0.16516954,85.194,85.155,0.48060967]
[1772807255296,11.73805359,85.193,85.157,0.48060967]
[1772807256004,11.73695144,85.201,85.157,0.48060967]
[1772807257798,0.28432314,85.204,85.159,0.48060967]
[1772807259802,0.16516954,85.188,85.142,0.48060967]
[1772807260003,0.16516954,85.179,85.142,0.48060967]
[1772807260217,0.16516954,85.202,85.142,0.48060967]
[1772807260386,41.07836577,85.203,85.142,0.48060967]
[1772807260387,0.16516954,85.192,85.142,0.48060967]
[1772807261005,0.16516954,85.189,85.142,0.48060967]
[1772807261805,11.73874254,85.188,85.144,0.48060967]
[1772807261992,11.90391208,85.188,85.144,0.48060967]
[1772807263908,11.90391208,85.188,85.146,0.48060967]
[1772807264116,0.16516954,85.186,85.146,0.48060967]
[1772807264712,11.73874254,85.188,85.146,0.48060967]
[1772807266113,11.73874254,85.188,85.148,0.48060967]
[1772807266296,0.14216157,85.195,85.148,0.48060967]
[1772807266612,0.28432314,85.195,85.148,0.48060967]
[1772807266818,0.44949268,85.195,85.148,0.48060967]
[1772807267116,11.73764026,85.196,85.148,0.48060967]
[1772807268306,0.16516954,85.2,85.15,0.48060967]
[1772807268717,11.73695144,85.201,85.15,0.48060967]
[1772807269292,0.16516954,85.206,85.152,0.48060967]
[1772807269496,0.16516954,85.205,85.152,0.48060967]
[1772807270309,11.73612496,85.207,85.152,0.48060967]
[1772807270819,11.9012945,85.207,85.152,0.48060967]
[1772807271321,0.28432314,85.196,85.154,0.48060967]
[1772807271497,11.90267203,85.197,85.154,0.48060967]
[1772807272696,0.16516954,85.196,85.154,0.48060967]
[1772807272903,0.16516954,85.196,85.153,41.10248611]
[1772807273406,0.49501756,85.194,85.144,3.69383402]
[1772807273715,11.7372712,85.199,85.144,3.69383402]
[1772807273924,12.23228876,85.199,85.144,3.69383402]
[1772807274131,0.49501756,85.198,85.144,3.69383402]
[1772807274812,0.49501756,85.198,85.145,0.48754956]
[1772807275010,0.47189355,85.209,85.146,0.48754956]
[1772807275410,0.47189355,85.209,85.152,0.48754956]
[1772807275922,11.73598723,85.208,85.152,0.48754956]
[1772807276107,0.47189355,85.207,85.152,0.48754956]
[1772807277420,0.47189355,85.207,85.151,0.28432314]
[1772807277421,0.47189355,85.207,85.158,0.48754956]
[1772807278723,11.73577877,85.21,85.163,0.48754956]
[1772807279019,0.47189355,85.214,85.163,0.48754956]
[1772807279426,0.47189355,85.212,85.163,0.48754956]
[1772807280226,11.7322696,85.235,85.164,0.48754956]
[1772807280406,0.47189355,85.233,85.164,0.48754956]
[1772807280728,0.47189355,85.231,85.169,0.62971113]
[1772807280910,0.47189355,85.231,85.17,0.48754956]
[1772807281510,11.73268256,85.232,85.17,0.48754956]
[1772807281511,0.48942182,85.229,85.17,0.48754956]
[1772807281712,0.48942182,85.227,85.17,0.48754956]
[1772807282313,0.48942182,85.219,85.17,0.48754956]
[1772807282509,0.48942182,85.199,85.164,0.47363929]
[1772807282708,0.48942182,85.197,85.165,11.74191275]
[1772807283320,0.48942182,85.197,85.163,29.35547127]
[1772807283321,0.48942182,85.196,85.157,11.74301584]
[1772807283527,0.48942182,85.196,85.156,11.74305003]
[1772807283719,0.48942182,85.193,85.156,11.74305003]
[1772807283922,0.48942182,85.191,85.156,11.74305003]
[1772807284115,0.48942182,85.191,85.15,0.47363929]
[1772807284730,0.48942182,85.189,85.152,0.47363929]
[1772807285153,10.8306605,85.21,85.151,41.10345151]
[1772807285154,0.48942182,85.197,85.155,0.47363929]
[1772807285512,11.73764026,85.196,85.155,0.47363929]
[1772807287031,0.48942182,85.196,85.157,0.47363929]
[1772807288014,0.48942182,85.196,85.159,0.47363929]
[1772807288015,11.73777803,85.195,85.159,0.47363929]
[1772807288210,11.73777803,85.195,85.162,0.47363929]
[1772807288416,12.22719985,85.195,85.162,0.47363929]
[1772807288839,0.48942182,85.194,85.162,0.47363929]
[1772807290235,11.73805359,85.193,85.164,0.47363929]
[1772807290418,0.48942182,85.194,85.164,0.47363929]
[1772807291135,12.2274271,85.194,85.164,0.47363929]
[1772807291340,0.48942182,85.193,85.164,0.47363929]
[1772807291743,0.48942182,85.215,85.164,0.47363929]
[1772807292041,0.48942182,85.213,85.164,0.47363929]
[1772807292246,0.48942182,85.211,85.164,0.47363929]
[1772807292442,0.48942182,85.208,85.166,0.47363929]
[1772807292740,0.48942182,85.206,85.166,0.47363929]
[1772807292941,0.48942182,85.204,85.166,0.47363929]
[1772807293125,7.62846266,85.205,85.166,0.47363929]
[1772807293126,0.48942182,85.202,85.166,0.47363929]
[1772807293518,0.48942182,85.209,85.166,0.47363929]
[1772807293841,12.22527131,85.209,85.166,0.47363929]
[1772807294243,0.48942182,85.208,85.166,0.47363929]
[1772807294444,11.73514309,85.215,85.168,0.47363929]
[1772807294619,7.62957149,85.214,85.168,0.47363929]
[1772807294825,8.11899331,85.213,85.168,0.47363929]
[1772807295148,0.48942182,85.248,85.172,0.35422079]
[1772807295327,0.48942182,85.239,85.172,0.35422079]
[1772807295524,0.48942182,85.229,85.172,0.35422079]
[1772807295732,0.48942182,85.219,85.172,0.35422079]
[1772807296539,0.48942182,85.219,85.174,0.35422079]
[1772807297334,0.48942182,85.217,85.174,0.35422079]
[1772807298229,0.48942182,85.217,85.173,41.09283458]
[1772807298425,0.48942182,85.215,85.173,29.3520247]
[1772807299827,0.28432314,85.226,85.174,0.35422079]